fUST/lending_fUST_20250510
["ID","MTS","AMOUNT","RATE_DAILY","PERIOD"]
[360530746,1746849043764,-420.0,0.00010449,2]
[360530747,1746849043774,-420.0,0.00010449,2]
[360530748,1746849043784,-277.44769808,0.00010482,2]
[360530749,1746849043793,-1009.44125324,0.00010493,2]
[360530750,1746849043803,-404.0,0.00010506,2]
[360530751,1746849043812,-1009.44125321,0.00010518,2]
[360530752,1746849043822,-1009.44125321,0.00010544,2]
[360530753,1746849043832,-1009.44125321,0.00010569,2]
[360530754,1746849043842,-197.0,0.00010582,2]
[360530755,1746849043852,-197.0,0.00010582,2]
[360530756,1746849043861,-12619.28597579,0.00010593,2]
[360530757,1746849043871,-160.0,0.00010593,2]
[360530758,1746849043880,-422.13686889,0.00010593,2]
[360530759,1746849043890,-160.0,0.00010593,2]
[360530760,1746849043900,-160.0,0.00010593,2]
[360530765,1746849044013,-160.0,0.00010593,2]
[360530766,1746849044022,-842.34118046,0.00010593,2]
[360530767,1746849044031,-160.0,0.00010593,2]
[360530768,1746849044041,-314.1579823,0.00010593,2]
[360530769,1746849044050,-1009.44125321,0.00010594,2]
[360530770,1746849044060,-197.0,0.000106,2]
[360530771,1746849044069,-197.0,0.000106,2]
[360530772,1746849044078,-1969.55703801,0.00010617,2]
[360530773,1746849044087,-568.3365895,0.00010635,2]
[360530774,1746849044097,-212.13671436,0.00010671,2]
[360530775,1746849044106,-160.0,0.00010671,2]
[360530776,1746849044116,-10083.92609256,0.00010673,2]
[360530777,1746849044126,-500.0,0.00010673,2]
[360530778,1746849044135,-408.36227071,0.00010673,2]
[360530779,1746849044145,-500.0,0.00010673,2]
[360530780,1746849044155,-500.0,0.00010673,2]
[360530781,1746849044164,-500.0,0.00010673,2]
[360530782,1746849044174,-253.34907221,0.00010673,2]
[360530783,1746849044183,-555.45413413,0.00010673,2]
[360530784,1746849044193,-500.0,0.00010673,2]
[360530785,1746849044203,-500.0,0.00010673,2]
[360530786,1746849044215,-500.0,0.00010673,2]
[360530787,1746849044224,-500.0,0.00010673,2]
[360530788,1746849044233,-500.0,0.00010673,2]
[360530789,1746849044243,-504.79214225,0.00010673,2]
[360530790,1746849044254,-33999.30857568,0.00010689,2]
[360530791,1746849044640,487.0,0.000155,30]
[360530829,1746849046716,-302.0,0.00010689,2]
[360530830,1746849046728,-20416.60154148,0.00010689,2]
[360530842,1746849046891,-8504.86859648,0.00010689,2]
[360530907,1746849228923,-373.79356423,9.398e-05,2]
[360530908,1746849228947,-379.43049319,9.398e-05,2]
[360530909,1746849228968,-1000.0,9.399e-05,2]
[360530910,1746849228990,-300.0,9.497e-05,2]
[360530911,1746849229013,-500.0,9.498e-05,2]
[360530912,1746849229036,-500.0,9.498e-05,2]
[360530913,1746849229058,-500.0,9.498e-05,2]
[360530914,1746849229081,-362.98448279,9.498e-05,2]
[360530915,1746849229103,-500.0,9.498e-05,2]
[360530916,1746849229125,-595.32563529,9.498e-05,2]
[360530917,1746849229147,-500.0,9.498e-05,2]
[360530918,1746849229173,-500.0,9.498e-05,2]
[360530919,1746849229195,-500.0,9.498e-05,2]
[360530920,1746849229217,-500.0,9.498e-05,2]
[360530921,1746849229241,-500.0,9.498e-05,2]
[360530922,1746849229264,-500.0,9.498e-05,2]
[360530923,1746849229289,-493.4658245,9.498e-05,2]
[360530979,1746850189595,-280.18309165,8.277e-05,2]
[360530983,1746850205332,-268.80423239,8.277e-05,2]
[360530984,1746850218550,-224.59840198,8.195e-05,2]
[360531050,1746850232831,-192.50261905,8.195e-05,2]
[360531052,1746850232842,-5733.77183026,8.277e-05,2]
[360531054,1746850232854,-386.43962041,9.073e-05,2]
[360531056,1746850232866,-1205.42836553,9.126e-05,2]
[360531059,1746850232876,-300.0,9.171e-05,2]
[360531061,1746850232886,-1200.0,9.171e-05,2]
[360531062,1746850232895,-254.08913795,9.172e-05,2]
[360531065,1746850232904,-292.85991286,9.172e-05,2]
[360531351,1746850244824,-207.14008714,9.172e-05,2]
[360531352,1746850244834,-500.0,9.172e-05,2]
[360531353,1746850244845,-268.68819735,9.172e-05,2]
[360531354,1746850244854,-500.0,9.172e-05,2]
[360531355,1746850244864,-500.0,9.172e-05,2]
[360531356,1746850244873,-500.0,9.172e-05,2]
[360531357,1746850244883,-500.0,9.172e-05,2]
[360531358,1746850244892,-500.0,9.172e-05,2]
[360531359,1746850244902,-500.0,9.172e-05,2]
[360531360,1746850244911,-500.0,9.172e-05,2]
[360531361,1746850244921,-500.0,9.172e-05,2]
[360531362,1746850244931,-500.0,9.172e-05,2]
[360531363,1746850244940,-500.0,9.172e-05,2]
[360531364,1746850244950,-450.0,9.172e-05,2]
[360531365,1746850244959,-338.11204651,9.172e-05,2]
[360531366,1746850244969,-24900.0,9.175e-05,2]
[360531367,1746850244980,-283.2688766,9.198e-05,2]
[360531368,1746850244989,-1000.0,9.298e-05,2]
[360531369,1746850244999,-420.0,0.00010088,2]
[360531370,1746850245008,-1610.11806081,0.000101,2]
[360531371,1746850245018,-1446.60471255,0.000101,2]
[360531439,1746850247002,-163.51334812,0.000101,2]
[360531441,1746850247017,-1610.11806067,0.000101,2]
[360531443,1746850247031,-1610.11806067,0.000101,2]
[360531446,1746850247046,-1610.11806067,0.000101,2]
[360531449,1746850247060,-342.71711077,0.00010183,2]
[360531451,1746850247079,-1267.4009499,0.00010183,2]
[360531454,1746850247093,-3784.60166835,0.00010215,2]
[360531678,1746850252148,-177.86239657,8.276e-05,2]
[360531679,1746850252171,-15.3972656,8.276e-05,2]
[360531680,1746850263615,-300.0,8.275e-05,2]
[360531681,1746850263641,-55.44444912,8.276e-05,2]
[360531682,1746850278647,-167.59908893,8.276e-05,2]
[360531683,1746850293600,-277.44769808,8.194e-05,2]
[360531684,1746850293629,-139.09034632,8.276e-05,2]
[360531685,1746850308622,-122.46885003,8.276e-05,2]
[360531686,1746850308645,-55.98609466,8.276e-05,2]
[360531687,1746850324189,-277.44769808,8.275e-05,2]
[360531688,1746850325320,-22.55230192,8.275e-05,2]
[360531689,1746850325346,-254.89539616,8.276e-05,2]
[360531692,1746850341223,-189.11850918,8.276e-05,2]
[360531693,1746850341245,-158.96548832,8.276e-05,2]
[360531694,1746850354055,-457.04729428,8.275e-05,2]
[360531695,1746850354674,-42.95270572,8.275e-05,2]
[360531696,1746850354697,-414.09458856,8.275e-05,2]
[360531698,1746850368595,-85.90541144,8.275e-05,2]
[360531699,1746850368620,-89.59526639,8.275e-05,2]
[360531700,1746850383682,-324.47898229,8.275e-05,2]
[360531701,1746850398688,-85.92575132,8.275e-05,2]
[360531702,1746850398713,-84.25370263,8.275e-05,2]
[360531704,1746850413668,-296.85736927,8.275e-05,2]
[360531705,1746850429210,-80.45697993,8.275e-05,2]
[360531706,1746850429233,-93.84507066,8.275e-05,2]
[360531707,1746850443672,-258.95873657,8.274e-05,2]
[360531708,1746850458725,-41.04126343,8.274e-05,2]
[360531709,1746850458748,-315.44288775,8.275e-05,2]
[360531710,1746850474769,-90.71204159,8.275e-05,2]
[360531711,1746850474792,-66.33990339,8.275e-05,2]
[360531712,1746850488613,-201.01492869,8.275e-05,2]
[360531713,1746850504278,-158.98507131,8.274e-05,2]
[360531714,1746850518617,-141.01492869,8.274e-05,2]
[360531715,1746850518641,-48.00660782,8.274e-05,2]
[360531716,1746850533576,-292.04984736,8.274e-05,2]
[360531717,1746850548740,-163.55712868,8.274e-05,2]
[360531718,1746850563596,-164.21709764,8.274e-05,2]
[360531721,1746850623170,-170.61535076,8.272e-05,2]
[360531722,1746850638134,-129.38464924,8.272e-05,2]
[360531723,1746850638158,-191.35069186,8.273e-05,2]
[360531724,1746850652638,-179.23776153,8.273e-05,2]
[360531725,1746850669385,-129.41154661,8.273e-05,2]
[360531726,1746850669408,-84.47776497,8.273e-05,2]
[360531727,1746850683362,-197.72102774,8.273e-05,2]
[360531728,1746850698352,-217.80120729,8.273e-05,2]
[360531729,1746850698383,-139.43730907,8.273e-05,2]
[360531730,1746850712643,-230.59110516,8.273e-05,2]
[360531731,1746850728199,-349.37658596,8.272e-05,2]
[360531732,1746850742603,-150.62341404,8.272e-05,2]
[360531733,1746850742625,-149.37658596,8.272e-05,2]
[360531734,1746850757713,-250.0,8.173e-05,2]
[360531735,1746850772710,-200.28999777,8.173e-05,2]
[360531736,1746850772731,-102.64302465,8.173e-05,2]
[360531737,1746850787734,-110.5208817,8.173e-05,2]
[360531739,1746851017379,-161.1812604,8.168e-05,2]
[360531740,1746851027617,-308.80239652,8.168e-05,2]
[360531741,1746851042608,-250.0,8.168e-05,2]
[360531742,1746851057922,-205.53431612,8.168e-05,2]
[360531743,1746851072724,-74.48202696,8.168e-05,2]
[360531744,1746851091512,-319.98365692,8.168e-05,2]
[360531745,1746851102696,-250.0,8.168e-05,2]
[360531746,1746851118267,-181.62220797,8.168e-05,2]
[360531747,1746851132696,-168.3775267,8.168e-05,2]
[360531749,1746851147642,-80.01660841,8.168e-05,2]
[360531750,1746851179501,-302.5004671,8.068e-05,2]
[360531751,1746851192915,-164.6234825,8.068e-05,2]
[360531752,1746851222682,-211.57149727,8.067e-05,2]
[360531753,1746851222706,-3.66467201,8.067e-05,2]
[360531754,1746851236067,-496.33532799,8.067e-05,2]
[360531755,1746851236088,-500.0,8.067e-05,2]
[360531756,1746851236109,-307.60351416,8.067e-05,2]
[360531757,1746851236132,-500.0,8.067e-05,2]
[360531758,1746851236157,-500.0,8.067e-05,2]
[360531759,1746851236178,-500.0,8.067e-05,2]
[360531760,1746851236199,-500.0,8.067e-05,2]
[360531761,1746851236220,-581.98135952,8.067e-05,2]
[360531762,1746851236242,-500.0,8.067e-05,2]
[360531763,1746851237650,-331.6224733,8.068e-05,2]
[360531764,1746851241612,168.3775267,8.067e-05,2]
[360531765,1746851248487,301.70227163,8.067e-05,2]
[360531766,1746851252708,-198.29772837,8.067e-05,2]
[360531767,1746851252733,-133.03237739,8.067e-05,2]
[360531768,1746851267661,-168.66989424,8.067e-05,2]
[360531769,1746851283177,-206.97923323,8.067e-05,2]
[360531770,1746851297648,-186.31153893,8.066e-05,2]
[360531777,1746851307840,-113.68846107,8.066e-05,2]
[360531778,1746851307863,-69.28970091,8.067e-05,2]
[360531779,1746851307885,-500.0,8.067e-05,2]
[360531780,1746851307906,-500.0,8.067e-05,2]
[360531781,1746851307929,-500.0,8.067e-05,2]
[360531782,1746851307957,-500.0,8.067e-05,2]
[360531783,1746851307980,-500.0,8.067e-05,2]
[360531784,1746851308006,-331.6224733,8.067e-05,2]
[360531785,1746851308028,-331.33010576,8.067e-05,2]
[360531786,1746851308053,-168.66989424,8.067e-05,2]
[360531787,1746851308077,-206.97923323,8.067e-05,2]
[360531788,1746851314364,-201.2535771,8.068e-05,2]
[360531789,1746851319028,186.31153893,8.067e-05,2]
[360531790,1746851320650,9.10859256,8.067e-05,2]
[360531791,1746851327661,-237.15815697,8.068e-05,2]
[360531796,1746851342736,-329.37804039,8.068e-05,2]
[360531800,1746851357816,-164.83253891,8.068e-05,2]
[360531801,1746851372691,-268.63126373,8.068e-05,2]
[360531809,1746851409430,-227.25376165,8.166e-05,2]
[360531810,1746851417603,-311.65439512,8.166e-05,2]
[360531844,1746851432069,-461.09184323,8.166e-05,2]
[360531845,1746851432078,-300.0,8.264e-05,2]
[360531846,1746851432089,-532.0,8.264e-05,2]
[360531847,1746851432099,-500.0,8.265e-05,2]
[360531848,1746851432110,-500.0,8.265e-05,2]
[360531849,1746851432121,-500.0,8.265e-05,2]
[360531851,1746851432132,-500.0,8.265e-05,2]
[360531852,1746851432142,-500.0,8.265e-05,2]
[360531853,1746851432151,-500.0,8.265e-05,2]
[360531854,1746851432164,-155.98306683,8.265e-05,2]
[360531855,1746851432311,-500.0,8.265e-05,2]
[360531856,1746851432321,-500.0,8.265e-05,2]
[360531857,1746851432331,-312.43516183,8.265e-05,2]
[360531858,1746851432340,-237.15815697,8.265e-05,2]
[360531859,1746851432350,-272.10491614,8.265e-05,2]
[360531860,1746851432359,-227.25376165,8.265e-05,2]
[360531861,1746851432368,-522.6638663,8.269e-05,2]
[360531862,1746851432377,-3190.5672674,8.601e-05,2]
[360531863,1746851432386,-420.0,9.09e-05,2]
[360531864,1746851432396,-24900.0,9.115e-05,2]
[360531865,1746851432406,-1500.0,9.472e-05,2]
[360531866,1746851432416,-152.0,9.838e-05,2]
[360531867,1746851432425,-326.89922078,9.999e-05,2]
[360531868,1746851432435,-587.0,9.999e-05,2]
[360531869,1746851432448,-284.087014,0.0001,2]
[360531870,1746851432458,-284.087014,0.0001,2]
[360531871,1746851432467,-284.087014,0.0001,2]
[360531872,1746851432478,-284.087014,0.0001,2]
[360531873,1746851432488,-205.124488,0.0001,2]
[360531874,1746851432499,-155.109322,0.0001,2]
[360531875,1746851432510,-11288.09444871,0.0001,2]
[360531876,1746851432519,-11288.09444853,0.0001,2]
[360531877,1746851432529,-11288.09444853,0.0001,2]
[360531878,1746851432538,-8089.79078044,0.0001,2]
[360531879,1746851433317,-331.74570424,8.264e-05,2]
[360531880,1746851433966,-168.25429576,8.264e-05,2]
[360531881,1746851433989,-163.49140848,8.264e-05,2]
[360531892,1746851437843,-336.50859152,8.264e-05,2]
[360531893,1746851437853,-500.0,8.264e-05,2]
[360531894,1746851437862,-500.0,8.264e-05,2]
[360531895,1746851437872,-500.0,8.264e-05,2]
[360531896,1746851437881,-642.89118666,8.264e-05,2]
[360531897,1746851437891,-3198.30366809,0.0001,2]
[360531898,1746851437900,-7241.28255373,0.0001,2]
[360531965,1746851442936,-311.65439512,8.263e-05,2]
[360531968,1746851442946,-461.77589631,8.263e-05,2]
[360531970,1746851442955,-4046.8118948,0.0001,2]
[360531972,1746851442964,-274.271307,0.0001,2]
[360531974,1746851442973,-274.271307,0.0001,2]
[360531976,1746851442982,-274.271307,0.0001,2]
[360531978,1746851442991,-274.271307,0.0001,2]
[360531979,1746851443000,-1238.66721608,0.0001,2]
[360531982,1746851443010,-151.0,0.0001,2]
[360531984,1746851443019,-151.0,0.0001,2]
[360531987,1746851443028,-221.998786,0.0001,2]
[360531989,1746851443037,-500.0,0.00010017,2]
[360531992,1746851443051,-151.0,0.00010017,2]
[360531994,1746851443061,-660.773093,0.00010017,2]
[360531996,1746851443071,-660.773093,0.00010017,2]
[360531998,1746851443080,-151.0,0.00010017,2]
[360532000,1746851443090,-151.0,0.00010017,2]
[360532002,1746851443100,-11288.09444853,0.00010017,2]
[360532004,1746851443109,-1238.66721607,0.00010074,2]
[360532006,1746851443119,-160.0,0.00010193,2]
[360532008,1746851443128,-422.13686889,0.00010193,2]
[360532010,1746851443137,-160.0,0.00010193,2]
[360532012,1746851443146,-160.0,0.00010193,2]
[360532014,1746851443155,-160.0,0.00010193,2]
[360532015,1746851443164,-842.34118046,0.00010193,2]
[360532017,1746851443174,-160.0,0.00010193,2]
[360532019,1746851443183,-314.1579823,0.00010193,2]
[360532021,1746851443192,-212.13671436,0.00010193,2]
[360532022,1746851443202,-160.0,0.00010193,2]
[360532023,1746851443212,-12619.28597579,0.00010193,2]
[360532024,1746851443221,-160.0,0.00010193,2]
[360532025,1746851443230,-160.0,0.00010193,2]
[360532026,1746851443240,-151.0,0.00010215,2]
[360532027,1746851443249,-151.0,0.00010215,2]
[360532028,1746851443258,-284.087014,0.00010215,2]
[360532029,1746851443269,-284.087014,0.00010215,2]
[360532030,1746851443278,-11288.09444853,0.00010221,2]
[360532031,1746851443288,-151.0,0.00010221,2]
[360532032,1746851443297,-660.773093,0.00010221,2]
[360532033,1746851443306,-660.773093,0.00010221,2]
[360532034,1746851443315,-154.58778,0.00010221,2]
[360532035,1746851443325,-151.0,0.00010221,2]
[360532036,1746851443334,-1238.66721607,0.00010247,2]
[360532037,1746851443344,-274.271307,0.00010279,2]
[360532038,1746851443353,-274.271307,0.00010279,2]
[360532039,1746851443363,-151.0,0.00010279,2]
[360532040,1746851443372,-504.19596817,0.00010291,2]
[360532041,1746851443382,-151.0,0.000103,2]
[360532042,1746851443392,-1238.66721607,0.00010421,2]
[360532043,1746851443402,-11288.09444853,0.00010424,2]
[360532044,1746851443411,-546.0,0.0001046,2]
[360532045,1746851443421,-404.0,0.0001046,2]
[360532046,1746851443430,-708.0,0.0001046,2]
[360532047,1746851443440,-151.0,0.000105,2]
[360532048,1746851443449,-151.0,0.000105,2]
[360532049,1746851443458,-284.087014,0.0001051,2]
[360532050,1746851443467,-284.087014,0.0001051,2]
[360532051,1746851443476,-150.029,0.0001058,2]
[360532052,1746851443494,-1238.66721607,0.00010594,2]
[360532053,1746851443505,-2000.0,0.000106,2]
[360532054,1746851443515,-11288.09444853,0.00010628,2]
[360532055,1746851443525,-151.0,0.00010628,2]
[360532056,1746851443536,-660.773093,0.00010628,2]
[360532057,1746851443546,-660.773093,0.00010628,2]
[360532058,1746851443555,-208.426027,0.00010628,2]
[360532059,1746851443565,-151.0,0.00010628,2]
[360532060,1746851443576,-633.80047,0.00010635,2]
[360532061,1746851443587,-328.10217549,0.0001067,2]
[360532062,1746851443596,-500.0,0.00010673,2]
[360532063,1746851443606,-301.80041885,0.00010673,2]
[360532064,1746851443616,-500.0,0.00010673,2]
[360532065,1746851443626,-500.0,0.00010673,2]
[360532066,1746851443635,-500.0,0.00010673,2]
[360532067,1746851443644,-500.0,0.00010673,2]
[360532068,1746851443654,-500.0,0.00010673,2]
[360532069,1746851443664,-500.0,0.00010673,2]
[360532070,1746851443674,-500.0,0.00010673,2]
[360532071,1746851443683,-500.0,0.00010673,2]
[360532072,1746851443693,-151.0,0.00010673,2]
[360532073,1746851443703,-151.0,0.00010673,2]
[360532074,1746851443712,-151.0,0.00010673,2]
[360532075,1746851443722,-274.271307,0.00010673,2]
[360532076,1746851443731,-274.271307,0.00010673,2]
[360532077,1746851443741,-151.0,0.00010673,2]
[360532078,1746851443751,-151.0,0.00010689,2]
[360532079,1746851443761,-159.635895,0.00010689,2]
[360532080,1746851443771,-154.650237,0.00010689,2]
[360532081,1746851443781,-151.0,0.00010689,2]
[360532082,1746851443790,-151.0,0.00010689,2]
[360532083,1746851443800,-151.0,0.00010689,2]
[360532084,1746851443810,-151.0,0.00010689,2]
[360532085,1746851443820,-660.773093,0.00010689,2]
[360532086,1746851443830,-660.773093,0.00010689,2]
[360532087,1746851443840,-208.426027,0.00010689,2]
[360532088,1746851443849,-151.0,0.00010689,2]
[360532089,1746851443859,-284.087014,0.00010689,2]
[360532090,1746851443870,-284.087014,0.00010689,2]
[360532091,1746851443880,-274.271307,0.00010689,2]
[360532092,1746851443889,-274.271307,0.00010689,2]
[360532093,1746851443899,-151.0,0.00010689,2]
[360532094,1746851443908,-17117.01107211,0.00010689,2]
[360532122,1746851445928,-215624.62957972,0.00010689,2]
[360532125,1746851482846,-334.88968516,8.166e-05,2]
[360532126,1746851494847,-312.1776784,8.166e-05,2]
[360532127,1746851508312,-254.44316651,8.166e-05,2]
[360532128,1746851523822,-98.48946993,8.166e-05,2]
[360532129,1746851545393,-215.61484261,8.263e-05,2]
[360532130,1746851552658,-40.88515739,8.263e-05,2]
[360532900,1746851819767,156.492407,0.0001519,30]
[360532938,1746852632236,-2644.777874,8.42e-05,2]
[360532939,1746852632247,-1036.4251211,8.42e-05,2]
[360532940,1746852632257,-300.0,8.903e-05,2]
[360532941,1746852632266,-1200.0,8.903e-05,2]
[360532942,1746852632275,-500.0,8.904e-05,2]
[360532943,1746852632284,-500.0,8.904e-05,2]
[360532944,1746852632294,-500.0,8.904e-05,2]
[360532945,1746852632303,-500.0,8.904e-05,2]
[360532946,1746852632312,-208.01685244,8.904e-05,2]
[360532947,1746852632321,-897.2249503,8.907e-05,2]
[360533122,1746852640457,-24002.7750497,8.907e-05,2]
[360533123,1746852640466,-1716.07024147,9.492e-05,2]
[360533124,1746852640475,-5381.87731492,9.592e-05,2]
[360533125,1746852640485,-69650.81557608,9.592e-05,2]
[360533126,1746852640494,-152.0,9.772e-05,2]
[360533127,1746852640503,-2482.83699308,9.772e-05,2]
[360533129,1746852640514,-420.0,9.793e-05,2]
[360533130,1746852640523,-1000.0,9.9e-05,2]
[360533131,1746852640532,-2482.83699306,9.903e-05,2]
[360533132,1746852640542,-7901.666114,0.0001,2]
[360533133,1746852640551,-33101.12656417,0.0001,2]
[360533134,1746852640560,-7901.66611397,0.0001,2]
[360533135,1746852640569,-7901.66611397,0.0001,2]
[360533136,1746852640578,-7901.66611397,0.0001,2]
[360533137,1746852640588,-7901.66611397,0.00010021,2]
[360533138,1746852640597,-7901.66611397,0.00010176,2]
[360533139,1746852640607,-212.13671436,0.00010178,2]
[360533140,1746852640616,-12619.28597579,0.00010178,2]
[360533141,1746852640626,-160.0,0.00010178,2]
[360533142,1746852640636,-160.0,0.00010178,2]
[360533143,1746852640645,-422.13686889,0.00010178,2]
[360533144,1746852640655,-160.0,0.00010178,2]
[360533145,1746852640664,-160.0,0.00010178,2]
[360533146,1746852640673,-842.34118046,0.00010178,2]
[360533147,1746852640682,-160.0,0.00010178,2]
[360533148,1746852640691,-160.0,0.00010178,2]
[360533149,1746852640700,-160.0,0.00010178,2]
[360533150,1746852640710,-160.0,0.00010178,2]
[360533151,1746852640719,-499.99999901,0.0001021,2]
[360533152,1746852640728,-7901.66611397,0.00010331,2]
[360533153,1746852640737,-187.583424,0.00010348,2]
[360533154,1746852640747,-187.583424,0.00010348,2]
[360533155,1746852640756,-151.0,0.00010348,2]
[360533156,1746852640765,-151.0,0.00010348,2]
[360533158,1746852640774,-150.102,0.00010465,2]
[360533160,1746852640783,-317.854,0.00010465,2]
[360533162,1746852640792,-7901.66611397,0.00010486,2]
[360533164,1746852640802,-250.0,0.00010501,2]
[360533166,1746852640811,-396.463856,0.00010538,2]
[360533168,1746852640820,-396.463856,0.00010538,2]
[360533170,1746852640830,-1400.0,0.00010568,2]
[360533173,1746852640840,-150.03,0.0001058,2]
[360533174,1746852640849,-2000.0,0.000106,2]
[360533176,1746852640859,-679.8708254,0.00010635,2]
[360533179,1746852640868,-7901.66611397,0.00010641,2]
[360533181,1746852640877,-500.0,0.00010673,2]
[360533183,1746852640886,-167.83007066,0.00010673,2]
[360533184,1746852640896,-500.0,0.00010673,2]
[360533187,1746852640905,-500.0,0.00010673,2]
[360533189,1746852640914,-500.0,0.00010673,2]
[360533191,1746852640923,-500.0,0.00010673,2]
[360533193,1746852640933,-500.0,0.00010673,2]
[360533194,1746852640942,-500.0,0.00010673,2]
[360533195,1746852640951,-500.0,0.00010673,2]
[360533197,1746852640960,-151.0,0.00010689,2]
[360533199,1746852640970,-152.822682,0.00010689,2]
[360533200,1746852640979,-151.0,0.00010689,2]
[360533202,1746852640988,-151.0,0.00010689,2]
[360533203,1746852640998,-174.442717,0.00010689,2]
[360533204,1746852641007,-174.442717,0.00010689,2]
[360533205,1746852641016,-187.583424,0.00010689,2]
[360533206,1746852641027,-187.583424,0.00010689,2]
[360533207,1746852641037,-151.0,0.00010689,2]
[360533208,1746852641046,-151.0,0.00010689,2]
[360533209,1746852641057,-396.463856,0.00010689,2]
[360533210,1746852641066,-396.463856,0.00010689,2]
[360533211,1746852641075,-65309.91929823,0.00010689,2]
[360533790,1746853832340,-1000.0,8.32e-05,2]
[360533792,1746853832350,-224.54894737,8.32e-05,2]
[360533794,1746853832359,-250.0,9.492e-05,2]
[360533796,1746853832369,-1200.0,9.571e-05,2]
[360533798,1746853832378,-300.0,9.574e-05,2]
[360533800,1746853832387,-300.0,9.574e-05,2]
[360533802,1746853832397,-18832.08375292,9.575e-05,2]
[360533948,1746853833793,-219.74847343,8.22e-05,2]
[360534097,1746853838281,-780.25152657,8.22e-05,2]
[360534099,1746853838291,-500.0,9.57e-05,2]
[360534101,1746853838300,-545.61179671,9.57e-05,2]
[360534103,1746853838310,-500.0,9.57e-05,2]
[360534105,1746853838319,-135.03668672,9.575e-05,2]
[360534326,1746853840575,-5932.87956036,9.575e-05,2]
[360534328,1746853840585,-12619.28597579,0.00010177,2]
[360534330,1746853840595,-160.0,0.00010177,2]
[360534332,1746853840604,-422.13686889,0.00010177,2]
[360534334,1746853840614,-160.0,0.00010177,2]
[360534336,1746853840627,-842.34118046,0.00010177,2]
[360534338,1746853840637,-160.0,0.00010177,2]
[360534340,1746853840646,-160.0,0.00010177,2]
[360534342,1746853840655,-212.13671436,0.00010177,2]
[360534343,1746853840665,-160.0,0.00010177,2]
[360534345,1746853840675,-160.0,0.00010177,2]
[360534347,1746853840685,-462.214,0.00010465,2]
[360534349,1746853840694,-2240.0,0.00010465,2]
[360534351,1746853840704,-708.0,0.00010465,2]
[360534353,1746853840713,-404.0,0.00010465,2]
[360534355,1746853840724,-1489.70219586,0.000105,2]
[360534357,1746853840733,-1489.70219583,0.00010524,2]
[360534358,1746853840742,-420.0,0.00010531,2]
[360534360,1746853840752,-1489.70219583,0.00010547,2]
[360534362,1746853840761,-1300.0,0.00010568,2]
[360534364,1746853840771,-1489.70219583,0.00010571,2]
[360534366,1746853840780,-150.03008074,0.0001058,2]
[360534367,1746853840789,-67517.74562047,0.00010582,2]
[360534369,1746853840799,-1489.70219583,0.00010594,2]
[360534371,1746853840813,-2025.0,0.000106,2]
[360534373,1746853840822,-18334.93912421,0.000106,2]
[360534375,1746853840832,-702.1322874,0.00010635,2]
[360534376,1746853840841,-9796.20958171,0.00010653,2]
[360534378,1746853840852,-459.82614966,0.00010673,2]
[360534380,1746853840862,-500.0,0.00010673,2]
[360534382,1746853840871,-500.0,0.00010673,2]
[360534384,1746853840882,-500.0,0.00010673,2]
[360534386,1746853840892,-503.95328913,0.00010673,2]
[360534388,1746853840901,-500.0,0.00010673,2]
[360534390,1746853840911,-503.80340685,0.00010673,2]
[360534392,1746853840920,-500.0,0.00010673,2]
[360534393,1746853840929,-500.0,0.00010673,2]
[360534395,1746853840938,-500.0,0.00010673,2]
[360534397,1746853840947,-503.44736264,0.00010673,2]
[360534399,1746853840958,-501.08252237,0.00010673,2]
[360534401,1746853840967,-500.78546831,0.00010673,2]
[360534403,1746853840977,-500.0,0.00010673,2]
[360534405,1746853840986,-501.28201925,0.00010673,2]
[360534406,1746853840995,-500.0,0.00010673,2]
[360534408,1746853841004,-500.0,0.00010673,2]
[360534410,1746853841014,-500.0,0.00010673,2]
[360534412,1746853841023,-500.85160514,0.00010673,2]
[360534414,1746853841033,-398.09980991,0.00010673,2]
[360534415,1746853841042,-500.0,0.00010673,2]
[360534417,1746853841051,-500.0,0.00010673,2]
[360534419,1746853841060,-500.0,0.00010673,2]